Departmental Family,Entity,Date,Expense Type,Expense Area,Supplier,Transaction Number,Amount,Description ,Supplier Postcode,Supplier Type,Expenditure Type
Cabinet Office,Government Procurement Service,01/08/13,General Rates,Estates Management,DTZ,PINDOH 36736,29795.00,Rates charges,B4 6AJ,Large,Admin
Cabinet Office,CABINET OFFICE,01/08/13,OTHER IS IT COSTS VAT RECOV,PRIME MINISTERS OFFICE,VODAFONE LTD,3000038662,"30,826.99",IT services ,RG14 2FN,Large,Admin
Cabinet Office,CABINET OFFICE,01/08/13,Research and Development (VAT recoverable),POLITICAL AND CONSTITUTIONAL REFORM,LAW COMMISSION,3000038648,"31,250.00",Electoral Law review ,SW1H 9LJ,Government Department,Admin
Cabinet Office,Government Procurement Service,01/08/13,Service Charges Capital,Estates Management,DTZ,PINDOH 36736,34340.00,Service charges,B4 6AJ,Large,Admin
Cabinet Office,CABINET OFFICE,01/08/13,PROFESSIONAL ADVICE & OPINION VAT RECOVERABLE,INDEPENDENT OFFICES,KPMG,3000038635,"35,000.00",Civil Service Commission Compliance Monitoring services,WD17 1DE,Large,Admin
Cabinet Office,Government Procurement Service,01/08/13,MOTO Capital Building 8th Floor,Estates Management,DTZ,PINDOH 36736,39060.00,Rent for accommodation ,B4 6AJ,Large,Admin
Cabinet Office,Government Procurement Service,01/08/13,MOTO Capital Building 9th Floor,Estates Management,DTZ,PINDOH 36736,39215.00,Rent for accommodation ,B4 6AJ,Large,Admin
Cabinet Office,CABINET OFFICE,01/08/13,Research and Development (VAT recoverable),OFFICE FOR CIVIL SOCIETY,NATIONAL CENTRE FOR SOCIAL RESEARCH,3000038651,"52,862.75",Independent evaluation of National Citizen Service pilots,EC1V OAX,Large,Programme
Cabinet Office,CABINET OFFICE,01/08/13,CONTRACTORS & STAFF SUBSTITUTIONS,GOVERNMENT DIGITAL SERVICE,CREATIVE CHOICE CIC,3000038644,"64,829.44",Content editor costs for GOV.UK,SW1H 0DJ,SME,Programme
Cabinet Office,CABINET OFFICE,01/08/13,Research and Development (VAT recoverable),POLITICAL AND CONSTITUTIONAL REFORM,IPSOS MORI LTD,3000038663,"66,000.00",Market research on attitudes in Scotland towards Scottish independence,SE1 1FY,Large,Admin
Cabinet Office,CABINET OFFICE,01/08/13,CONTRACTORS & STAFF SUBSTITUTIONS,GOVERNMENT CIO SUMMARY,CAPITA RESOURCING LTD,3000038641,"88,856.15","Support for Public Service Network including development of technical standards, project management for the delivery of key services, stakeholder engagement and commercial advice.",SL6 1DP ,Large,Programme
Cabinet Office,CABINET OFFICE,01/08/13,FM CONTRACT LIFECYCLE,ESTATE MANAGEMENT,BOUYGUES ENERGIES & SERVICES FM UK LTD,3000038674,"127,500.00",Facilities Management Services ,BN1 1HG,Large,Admin
Cabinet Office,CABINET OFFICE,01/08/13,CONTRACTORS & STAFF SUBSTITUTIONS,GOVERNMENT CIO SUMMARY,ADVALUS LTD,3000038652,"224,460.00","Support for Public Service Network including development of technical standards, project management for the delivery of key services, stakeholder engagement and commercial advice.",SN13 0RP,SME,Programme
Cabinet Office,CABINET OFFICE,02/08/13,GRANT FUND MANAGEMENT,OFFICE FOR CIVIL SOCIETY,SOCIAL INVESTMENT BUSINESS,3000038711,"25,273.20",Investment and Contract Readiness Fund administration costs,WC1H 8AG,SME,Grants
Cabinet Office,CABINET OFFICE,02/08/13,CONSULTANTS VAT RECOVERABLE,ERG CENTRAL TEAMS,PA CONSULTING SERVICES LTD,3000038723,"37,312.50",Mutuals Support Programme: provision of technical support to potential mutual,SW1W 9SR,SME,Programme
Cabinet Office,CABINET OFFICE,02/08/13,INSIGNIA COSTS,HONOURS AND APPOINTMENTS,TREASURER TO THE QUEEN,3000038706,"67,422.00",Central chancery costs for the administration of Honours,SW1A 1AA,Government Department,Programme
Cabinet Office,CABINET OFFICE,02/08/13,OTHER IS IT COSTS VAT RECOV,GOVERNMENT DIGITAL SERVICE,SPECIALIST COMPUTER CENTRES PLC,3000038692,"82,711.85",GOV.UK software development ,B11 2LE,Large,Programme
Cabinet Office,CABINET OFFICE,02/08/13,NATIONAL CITIZEN SERVICE. CIVIL SOCIETY TRAINING & DEVELOP,OFFICE FOR CIVIL SOCIETY,THE FOOTBALL LEAGUE COMMUNITY LTD,3000038689,"266,490.00",National Citizen Service contract,PR2 2YF,SME,Programme
Cabinet Office,CABINET OFFICE,05/08/13,CONTRACTORS & STAFF SUBSTITUTIONS,GOVERNMENT DIGITAL SERVICE,CAPITA RESOURCING LTD,3000038768,"27,364.00",Interim IT specialists,SL6 1DP ,Large,Programme
Cabinet Office,CABINET OFFICE,05/08/13,WEBSITES ADDITIONS COST,OFFICE FOR CIVIL SOCIETY,CAPITA RESOURCING LTD,3000038768,"45,840.16",DATA.GOV.UK web development,SL6 1DP ,Large,Programme
Cabinet Office,CABINET OFFICE,05/08/13,CONTRACTORS & STAFF SUBSTITUTIONS,GOVERNMENT DIGITAL SERVICE,CAPITA RESOURCING LTD,3000038768,"235,082.28",Interim IT specialists,SL6 1DP ,Large,Programme
Cabinet Office,CABINET OFFICE,06/08/13,CONTRACTORS & STAFF SUBSTITUTIONS,ERG STRATEGY AND MANAGEMENT INFORMATION,CAPITA RESOURCING LTD,3000038785,33633,"Support for the Independent Shared Service Centre 2 project including development of financial models, business transfer agreements, transitional arrangements for services and assets, and stakeholder engagement",SL6 1DP,Large,Admin
Cabinet Office,CABINET OFFICE,06/08/13,RESOURCE GRANTS PRIVATE SECTOR,OFFICE FOR CIVIL SOCIETY,SCHOOL FOR SOCIAL ENTREPRENEURS,3000038794,"52,500.00",Strategic Partners Transition Programme Grant,E2 9PF,SME,Grants
Cabinet Office,CABINET OFFICE,07/08/13,RESOURCE GRANTS PRIVATE SECTOR,OFFICE FOR CIVIL SOCIETY,ACEVO,3000038811,"69,166.00",Strategic Partners Transition Programme Grant,WC1A 1NU,SME,Grants
Cabinet Office,CABINET OFFICE,07/08/13,RESOURCE GRANTS PRIVATE SECTOR,OFFICE FOR CIVIL SOCIETY,NATIONAL COUNCIL FOR VOLUNTARY ORGANISATIONS,3000038825,"78,026.00",Grant to provide commercial skills master classes to the voluntary sector,N1 9RL,Large,Grants
Cabinet Office,CABINET OFFICE,08/08/13,STAFF RELATED COSTS,CENTRAL BUDGETS,FCO SERVICES,3000038860,28807.2,Vetting Fees,MK19 7BH,Government Department,Admin
Cabinet Office,CABINET OFFICE,08/08/13,STATIONERY/ PUBLICATIONS/IT CONSUMABLES,ESTATE MANAGEMENT,RICOH UK LTD,3000038880,"43,111.36",Reprographic Services,CR5 2HR,Large,Admin
Cabinet Office,CABINET OFFICE,08/08/13,SERVICE CHARGES,CENTRAL BUDGETS,DE VERE VENUES LTD,3000038841,"224,780.88",Public Finance Initiative service charges,KT24 6DU,large,Admin
Cabinet Office,CABINET OFFICE,08/08/13,NATIONAL CITIZEN SERVICE. CIVIL SOCIETY TRAINING & DEVELOP,OFFICE FOR CIVIL SOCIETY,REED IN PARTNERSHIP LTD,3000038846,"297,685.80",National Citizen Service contract,L27 NX,Large,Programme
Cabinet Office,CABINET OFFICE,08/08/13,BUSINESS RATES - DIRECT LOCAL AUTHORITIES,ESTATE MANAGEMENT,WESTMINSTER CITY COUNCIL,3000038867,"434,535.00",Rates charges,WA55 1GG,Large,Admin
Cabinet Office,CABINET OFFICE,08/08/13,NATIONAL CITIZEN SERVICE. CIVIL SOCIETY TRAINING & DEVELOP,OFFICE FOR CIVIL SOCIETY,THE CHALLENGE NETWORK,3000038849,"592,499.99",National Citizen Service contract,SE1 7HS,SME,Programme
Cabinet Office,CABINET OFFICE,09/08/13,CONTRACTORS & STAFF SUBSTITUTIONS,GOVERNMENT CIO SUMMARY,CAPITA RESOURCING LTD,3000038910,"48,786.52","Support for Public Service Network including development of technical standards, project management for the delivery of key services, stakeholder engagement and commercial advice.",SL6 1DP ,Large,Programme
Cabinet Office,CABINET OFFICE,09/08/13,FM CONTRACT FIXED COSTS,ESTATE MANAGEMENT,MITIE BUSINESS SERVICES LTD,3000038920,49267.62,Facilities Management Services ,BS16 7FN,Large,Admin
Cabinet Office,CABINET OFFICE,09/08/13,WEBSITES ADDITIONS COST,GOVERNMENT CIO SUMMARY,GOSS INTERACTIVE LTD,3000038903,52800,"Support for Public Service Network including development of technical standards, project management for the delivery of key services, stakeholder engagement and commercial advice.",PL6 7TL,SME,Programme
Cabinet Office,CABINET OFFICE,09/08/13,FM CONTRACT LIFECYCLE,ESTATE MANAGEMENT,BOUYGUES ENERGIES & SERVICES FM UK LTD,3000038900,"127,500.00",Facilities Management Services ,BN1 1HG,Large,Admin
Cabinet Office,CABINET OFFICE,09/08/13,PROFESSIONAL SERVICES NON VAT RECOVERABLE,CENTRAL BUDGETS,MEDIACOM NORTH LTD,3000038899,"149,663.47",Change4life TV campaign ,M15 4PZ,SME,Admin
Cabinet Office,CABINET OFFICE,09/08/13,NATIONAL CITIZEN SERVICE. CIVIL SOCIETY TRAINING & DEVELOP,OFFICE FOR CIVIL SOCIETY,THE CHALLENGE NETWORK,3000038906,"524,331.97",National Citizen Service contract,SE1 7HS,SME,Programme
Cabinet Office,CABINET OFFICE,09/08/13,PENSIONER PAYROLL CONTRACTOR,SCHEME MANAGEMENT EXECUTIVE,ROYAL MAIL GROUP LTD,3000038915,"789,927.50",Royal Mail Statutory Pension Scheme administration costs,PE4 5PG,Large,Admin
Cabinet Office,CABINET OFFICE,09/08/13,PROFESSIONAL ADVICE & OPINION VAT RECOVERABLE,NEXT GENERATION HUMAN RESOURCES,DWP,3000038914,6138000,Redistribution of�departmental contributions to the cost of�Civil Service�HR Expert Services,FY5 3TA,Government Department,Admin
Cabinet Office,CABINET OFFICE,12/08/13,CONTRACTORS & STAFF SUBSTITUTIONS,GOVERNMENT CIO SUMMARY,CAPITA RESOURCING LTD,3000038932,84360.82,"Support for Public Service Network including development of technical standards, project management for the delivery of key services, stakeholder engagement and commercial advice.",SL6 1DP ,Large,Programme
Cabinet Office,CABINET OFFICE,12/08/13,NATIONAL CITIZEN SERVICE. CIVIL SOCIETY TRAINING & DEVELOP,OFFICE FOR CIVIL SOCIETY,THE CHALLENGE NETWORK,3000038925,"1,420,365.00",National Citizen Service contract,SE1 7HS,SME,Programme
Cabinet Office,Government Procurement Service,13/08/13,WSDS Maintenance & Repairs,Whitehall Standby Distribution Systems,Cofely,PINVP2P 2032,39509.78,Whitehall heating systems management,HP12 3TA,Large,Programme 
Cabinet Office,Government Procurement Service,13/08/13,WDHS Maintenance & Repairs,Whitehall District Heating Systems,Cofely,PINVP2P 2030,63322.21,Whitehall heating systems management,HP12 3TA,Large,Programme
Cabinet Office,CABINET OFFICE,13/08/13,CONTRACTORS & STAFF SUBSTITUTIONS,GOVERNMENT CIO SUMMARY,CAPITA RESOURCING LTD,3000039006,99687.23,"Support for Public Service Network including development of technical standards, project management for the delivery of key services, stakeholder engagement and commercial advice.",SL6 1DP ,Large,Programme
Cabinet Office,CABINET OFFICE,14/08/13,MANAGEMENT CONFERENCES,OFFICE FOR CIVIL SOCIETY,CALDER WORLD OF TRAVEL,3000039034,25581,Support services for G8 social impact forum,LS16 6RF,SME,Grants
Cabinet Office,CABINET OFFICE,14/08/13,"FURNITURE, FIXTURES & FITTINGS (NON-PRIME)",PRIME MINISTERS OFFICE,BOUYGUES ENERGIES & SERVICES,3000039033,"28,247.88",Facilities Management Services ,BN1 1HG,Large,Admin
Cabinet Office,CABINET OFFICE,14/08/13,OTHER IS IT COSTS VAT RECOV,GOVERNMENT DIGITAL SERVICE,OPEN IDENTITY EXCHANGE,2000392,"32,390.00",Annual Membership of the Open Identity Exchange,USA,Large,Programme
Cabinet Office,Government Procurement Service,14/08/13,Maintenance & Repairs - IT,Enablement Projects,IBM,PINVP2P 2036,42564.00,eSourcing system licences,PO6 3AU,Large,Admin 
Cabinet Office,Government Procurement Service,14/08/13,Maintenance & Repairs - IT,Enablement Projects,IBM,PINVP2P 2037,42564.00,eSourcing system licences,PO6 3AU,Large,Admin
Cabinet Office,CABINET OFFICE,14/08/13,TELECOM SECURITY SERVICES,INTELLIGENCE SECURITY AND RESILIENCE,MINISTRY OF DEFENCE,3000039053,645030.5,High Integrity Telecoms System Project costs,L2 3YL ,Government Department,Programme
Cabinet Office,CABINET OFFICE,15/08/13,TELECOM RENTALS,PRIME MINISTERS OFFICE,VODAFONE LTD,3000039088,"25,914.73",Mobile phone charges,RG14 2FN,Large,Admin
Cabinet Office,CABINET OFFICE,15/08/13,TELECOM RENTALS,PRIME MINISTERS OFFICE,BT,3000039076,48746.55,Telephony charges,DH98 1BT,Large,Admin
Cabinet Office,CABINET OFFICE,15/08/13,OTHER LEGAL FEES,ERG STRATEGY AND MANAGEMENT INFORMATION,DLA PIPER UK LLP,3000039067,"57,369.76","Support for the Independent Shared Service Centre 2 project including development of financial models, business transfer agreements, transitional arrangements for services and assets, and stakeholder engagement",EC2V 7EE ,Large,Admin
Cabinet Office,CABINET OFFICE,16/08/13,PUBLICITY ADVERTISING MEDIA,OFFICE FOR CIVIL SOCIETY,M4C,3000039116,"26,711.87",National Citizen Service publicity and advertising,WC1X 8RX,SME,Programme
Cabinet Office,CABINET OFFICE,16/08/13,OTHER IS IT COSTS VAT RECOV,GOVERNMENT DIGITAL SERVICE,SKYSCAPE CLOUD LTD,3000039114,"39,298.32",Cost of hosting GOV.UK,GU1 0LX,SME,Programme
Cabinet Office,CABINET OFFICE,16/08/13,OTHER IS IT COSTS VAT RECOV,GOVERNMENT PROPERTY UNIT,CORPORATE DOCUMENT SERVICES LTD,3000039127,"44,044.35","Support, maintenance and minor developments of e-PIMS.",LS2 LY,Large,Admin
Cabinet Office,CABINET OFFICE,16/08/13,CONTRACTORS & STAFF SUBSTITUTIONS,GOVERNMENT DIGITAL SERVICE,SKYSCAPE CLOUD LTD,3000039114,"52,003.53",Cost of hosting GOV.UK,GU1 0LX,SME,Programme
Cabinet Office,CABINET OFFICE,16/08/13,PENSIONER PAYROLL CONTRACTOR,SCHEME MANAGEMENT EXECUTIVE,ROYAL MAIL GROUP LTD,3000039110,394963.75,Royal Mail Pension Scheme administration charges,PE4 5PG,Large,Admin
Cabinet Office,CABINET OFFICE,16/08/13,NATIONAL CITIZEN SERVICE. CIVIL SOCIETY TRAINING & DEVELOP,OFFICE FOR CIVIL SOCIETY,REED IN PARTNERSHIP LTD,3000039102,1192105.8,National Citizen Service contract,L27 NX,Large,Programme
Cabinet Office,CABINET OFFICE,16/08/13,NATIONAL CITIZEN SERVICE. CIVIL SOCIETY TRAINING & DEVELOP,OFFICE FOR CIVIL SOCIETY,PETROC,3000039115,"1,623,124.89",National Citizen Service contract,EX31 2BQ,Large,Programme
Cabinet Office,CABINET OFFICE,19/08/13,FM CONTRACT VARIABLE,ESTATE MANAGEMENT,BOUYGUES E&S FM UK LTD,3000039156,25685.86,Estate services,BN1 1HG,Large,Admin
Cabinet Office,CABINET OFFICE,19/08/13,CONSULTANTS VAT RECOVERABLE,ERG CENTRAL TEAMS,MUTUAL VENTURES,3000039151,"27,830.80",Mutuals Support Programme: provision of technical support to potential mutual,WC1B 3QJ,SME,Programme
Cabinet Office,CABINET OFFICE,19/08/13,FM CONTRACT PROFITS,ESTATE MANAGEMENT,BOUYGUES E&S FM UK LTD,3000039156,28501.79,Facilities Management Services ,BN1 1HG,Large,Admin
Cabinet Office,CABINET OFFICE,19/08/13,OTHER IS IT COSTS VAT RECOV,IT AND TELECOMS BRANCH,HM TREASURY,3000039168,"31,531.21",Provision of ad hoc IT services not included under the Flex contract  ,NR7 0HS ,Government Department,Admin
Cabinet Office,CABINET OFFICE,19/08/13,FM CONTRACT VARIABLE,ESTATE MANAGEMENT,BOUYGUES ENERGIES & SERVICES FM UK LTD,3000039153,"32,411.48",Facilities Management Services ,BN1 1HG,Large,Admin
Cabinet Office,CABINET OFFICE,19/08/13,GRANT FUND MANAGEMENT,OFFICE FOR CIVIL SOCIETY,SOCIAL INVESTMENT BUSINESS,3000039180,"36,025.20",Monitoring of Social Action Fund projects.,WC1H 8AG,SME,Grants
Cabinet Office,CABINET OFFICE,19/08/13,CONSULTANTS VAT RECOVERABLE,ERG STRATEGY AND MANAGEMENT INFORMATION,RACHEL BELSHAM CONSULTING LIMITED,3000039154,"38,407.85","Consultancy services to assist and ensure the direction, implementation and governance of Civil Service Reform ",LU7 0BU,SME,Admin
Cabinet Office,CABINET OFFICE,19/08/13,CONTRACTORS & STAFF SUBSTITUTIONS,GOVERNMENT DIGITAL SERVICE,CAPITA RESOURCING LTD,3000039165,"43,104.88",Interim IT specialists,SL6 1DP ,Large,Programme
Cabinet Office,CABINET OFFICE,19/08/13,FM CONTRACT FIXED COSTS,PRIME MINISTERS OFFICE,BOUYGUES E&S FM UK LTD,3000039156,"50,019.90",Facilities Management Services,BN1 1HG,Large,Admin
Cabinet Office,CABINET OFFICE,19/08/13,ADDITIONSAUC F/H RES CONSULTANCY (FEES) VAT REC,ESTATE MANAGEMENT,BOUYGUES ENERGIES & SERVICES FM UK LTD,3000039153,"63,455.77",Facilities Management Services ,BN1 1HG,Large,Programme
Cabinet Office,CABINET OFFICE,19/08/13,PUBLICITY ADVERTISING MEDIA,POLICY COMMUNICATIONS,FCO SERVICES,3000039170,"150,000.00",GREAT Campaign ,MK19 7BH,Government Department,Programme
Cabinet Office,CABINET OFFICE,19/08/13,CONTRACTORS & STAFF SUBSTITUTIONS,GOVERNMENT DIGITAL SERVICE,CAPITA RESOURCING LTD,3000039165,191489.18,Interim IT specialists,SL6 1DP,Large,Programme
Cabinet Office,CABINET OFFICE,19/08/13,NON PRIME PROPERTY COSTS,GOVERNMENT DIGITAL SERVICE,FOOD STANDARDS AGENCY,3000039166,"276,836.12",Rent for accommodation ,YO1 7PX,Large,Programme
Cabinet Office,CABINET OFFICE,19/08/13,ADDITIONSAUC F/H NON RES BLDGS,ESTATE MANAGEMENT,BOUYGUES E&S FM UK LTD,3000039156,"528,798.00",Facilities Management Services ,BN1 1HG,Large,Programme
Cabinet Office,CABINET OFFICE,19/08/13,FM CONTRACT FIXED COSTS,ESTATE MANAGEMENT,BOUYGUES E&S FM UK LTD,3000039156,"601,769.66",Facilities Management Services ,BN1 1HG,Large,Admin
Cabinet Office,CABINET OFFICE,20/08/13,RESOURCE GRANTS PRIVATE SECTOR,OFFICE FOR CIVIL SOCIETY,SOCIETY NETWORK FOUNDATION,3000039199,34375,Big Society Network grant,WC2 R1LA,Large,Grants
Cabinet Office,CABINET OFFICE,20/08/13,RESOURCE GRANTS PRIVATE SECTOR,OFFICE FOR CIVIL SOCIETY,INSTITUTE OF FUNDRAISING,3000039232,"45,833.00",Strategic Partners Transition Programme Grant ,SW8 1UD,SME,Grants
Cabinet Office,CABINET OFFICE,20/08/13,OTHER IS IT COSTS VAT RECOV,GOVERNMENT DIGITAL SERVICE,SPECIALIST COMPUTER CENTRES PLC,3000039207,"51,597.44",Software development for GOV.UK,B11 2LE,Large,Programme
Cabinet Office,CABINET OFFICE,20/08/13,SERVICE CHARGES,ESTATE MANAGEMENT,SCOTLAND OFFICE,3000039231,57006.49,Estate services ,EH3 7HW,Government Department,Admin
Cabinet Office,CABINET OFFICE,20/08/13,PROFESSIONAL ADVICE & OPINION VAT RECOVERABLE,NEXT GENERATION HUMAN RESOURCES,HOME OFFICE,3000039219,"5,839,500.00",Redistribution of�departmental contributions to the cost of�Civil Service�HR Expert Services,E14 5LB,Government Department,Admin
Cabinet Office,CABINET OFFICE,21/08/13,FACILITIES SERVICES,ESTATE MANAGEMENT,SCOTLAND OFFICE,3000039250,"35,298.44",Estate services,EH3 7HW,Government Department,Admin
Cabinet Office,CABINET OFFICE,21/08/13,CONSULTANCY SERVICES  'NOT' RECOVERABLE,SCHEME MANAGEMENT EXECUTIVE,FINANCIAL REPORTING COUNCIL,3000039257,"38,505.00",Pension levy  ,LN5 5ET,Large,Admin
Cabinet Office,CABINET OFFICE,21/08/13,OTHER IS IT COSTS VAT RECOV,GOVERNMENT DIGITAL SERVICE,SPECIALIST COMPUTER CENTRES PLC,3000039272,"38,627.94",GOV.UK software development,B11 2LE,Large,Programme
Cabinet Office,CABINET OFFICE,21/08/13,Research and Development (VAT recoverable),OFFICE FOR CIVIL SOCIETY,TNS UK LTD,3000039271,"76,445.00","Delivery of the ""Community Life"" Survey 2013-14.",W5 1UA,SME,Programme
Cabinet Office,CABINET OFFICE,21/08/13,ADDITIONSAUC F/H NON RES BLDGS,ESTATE MANAGEMENT,BOUYGUES E&S FM UK LTD,3000039269,"95,827.20",Estate services ,BN1 1HG,Large,Programme
Cabinet Office,CABINET OFFICE,22/08/13,OTHER IS IT COSTS VAT RECOV,GOVERNMENT DIGITAL SERVICE,GOVDELIVERY INC,2000395,25616.5,GOV.UK website development,USA,Large,Programme
Cabinet Office,CABINET OFFICE,22/08/13,GRANT FUND MANAGEMENT VAT RECOVERABLE,OFFICE FOR CIVIL SOCIETY,THE YOUNG FOUNDATION,3000039310,50850,Support to the Neighbourhood Match Fund panels - Community First programme ,E2 9PF,Large,Grants
Cabinet Office,CABINET OFFICE,22/08/13,ADDITIONS -AUC IT FEES NON VAT REC,PRIME MINISTERS OFFICE,VIRGIN MEDIA LTD,3000039292,"306,000.00",Telephony charges,RG27 9UP,Large,Admin
Cabinet Office,CABINET OFFICE,22/08/13,SERVICE PAYMENTS,TRANSACTIONAL SHARED SERVICES,DWP,3000039296,"338,425.12",Facilities Management Services ,FY5 3TA ,Government Department,Admin
Cabinet Office,CABINET OFFICE,22/08/13,NATIONAL CITIZEN SERVICE. CIVIL SOCIETY TRAINING & DEVELOP,OFFICE FOR CIVIL SOCIETY,THE CHALLENGE NETWORK,3000039291,"369,488.10",National Citizen Service contract,SE1 7HS,SME,Programme
Cabinet Office,CABINET OFFICE,22/08/13,SERVICE PAYMENTS,TRANSACTIONAL SHARED SERVICES,DWP,3000039296,"4,000,000.00",Shared Services Transactional Services,FY5 3TA ,Government Department,Admin
Cabinet Office,CABINET OFFICE,22/08/13,PROFESSIONAL ADVICE & OPINION VAT RECOVERABLE,NEXT GENERATION HUMAN RESOURCES,HMRC,3000039302,"4,306,500.00",Redistribution of�departmental contributions to the cost of�Civil Service�HR Expert Services,BD98 1YY,Government Department,Admin
Cabinet Office,CABINET OFFICE,23/08/13,CONTRACTORS & STAFF SUBSTITUTIONS,GOVERNMENT DIGITAL SERVICE,CREATIVE CHOICE CIC,3000039329,"26,339.04",Content editor for GOV.UK,SW1H 0DJ,SME,Programme
Cabinet Office,CABINET OFFICE,23/08/13,ADDITIONSAUC F/H RES CONSULTANCY (FEES) VAT REC,ESTATE MANAGEMENT,BOUYGUES E&S FM UK LTD,3000039327,51274.8,Facilities Management Services ,BN1 1HG,Large,Programme
Cabinet Office,CABINET OFFICE,23/08/13,CONTRACTORS & STAFF SUBSTITUTIONS,GOVERNMENT CIO SUMMARY,CAPITA RESOURCING LTD,3000039328,"65,624.20","Support for Public Service Network including development of technical standards, project management for the delivery of key services, stakeholder engagement and commercial advice.",SL6 1DP,Large,Programme
Cabinet Office,CABINET OFFICE,23/08/13,PENSIONER PAYROLL CONTRACTOR,SCHEME MANAGEMENT EXECUTIVE,MYCSP LTD,3000039316,180145.38,New Civil Service Pension Scheme 2015 Implementation Programme,LS2 7UA,Large,Admin
Cabinet Office,CABINET OFFICE,23/08/13,CONSULTANCY SERVICES  'NOT' RECOVERABLE,ERG STRATEGY AND MANAGEMENT INFORMATION,PRICEWATERHOUSE COOPERS LLP,3000039348,"250,177.20","Support for the Independent Shared Service Centre 2 project including development of financial models, business transfer agreements, transitional arrangements for services and assets, and stakeholder engagement",E14 9SQ,Large,Admin
Cabinet Office,CABINET OFFICE,23/08/13,PENSIONER PAYROLL CONTRACTOR,SCHEME MANAGEMENT EXECUTIVE,MYCSP LTD,3000039316,"2,729,547.99",Pensions administration charge,LS2 7UA,Large,Admin
Cabinet Office,CABINET OFFICE,27/08/13,TELECOM RENTALS,CENTRAL BUDGETS,SPECIALIST COMPUTER CENTRE PLC,3000039390,"43,464.04",IT services,B11 2LE,Large,Admin
Cabinet Office,CABINET OFFICE,27/08/13,OTHER IS IT COSTS VAT RECOV,GOVERNMENT DIGITAL SERVICE,SPECIALIST COMPUTER CENTRES PLC,3000039371,"76,986.29",GOV.UK software development,B11 2LE,Large,Programme
Cabinet Office,CABINET OFFICE,28/08/13,CONTRACTORS & STAFF SUBSTITUTIONS,GOVERNMENT CIO SUMMARY,CAPITA RESOURCING LTD,3000039412,26281.75,"Support for Public Service Network including development of technical standards, project management for the delivery of key services, stakeholder engagement and commercial advice.",SL6 1DP,Large,Programme
Cabinet Office,CABINET OFFICE,28/08/13,MANAGEMENT CONFERENCES,ERG STRATEGY AND MANAGEMENT INFORMATION,DODS PARLIAMENTARY COMMUNICATIONS LTD,3000039424,"40,230.70","Supply of services including venue hire, communications and labour costs  for the 'Be Exceptional' events in July which brought together over 7,000 civil servants from across the country to engage in the Civil Service Reform agenda 
",E1W 1AZ,SME,Admin,,,,,,,,
Cabinet Office,CABINET OFFICE,28/08/13,CALL CHARGES,IT AND TELECOMS BRANCH,BT,3000039430,"46,312.34",Telephony services ,DH98 1BT,Large,Admin
Cabinet Office,CABINET OFFICE,28/08/13,CONTRACTORS & STAFF SUBSTITUTIONS,GOVERNMENT DIGITAL SERVICE,CAPITA RESOURCING LTD,3000039412,99633.38,Interim IT specialists,SL6 1DP ,Large,Programme
Cabinet Office,CABINET OFFICE,28/08/13,OTHER LEGAL FEES,ERG STRATEGY AND MANAGEMENT INFORMATION,DLA PIPER UK LLP,3000039405,"205,945.20","Support for the Independent Shared Service Centre 2 project including development of financial models, business transfer agreements, transitional arrangements for services and assets, and stakeholder engagement",EC2V 7EE ,Large,Admin
Cabinet Office,CABINET OFFICE,29/08/13,FM CONTRACT VARIABLE,PRIME MINISTERS OFFICE,BOUYGUES E&S FM UK LTD,3000039446,"55,280.81",Facilities Management Services,BN1 1HG,Large,Admin
Cabinet Office,CABINET OFFICE,29/08/13,CONTRACTORS & STAFF SUBSTITUTIONS,GOVERNMENT CIO SUMMARY,CAPITA RESOURCING LTD,3000039449,"82,005.57","Support for Public Service Network including development of technical standards, project management for the delivery of key services, stakeholder engagement and commercial advice.",SL6 1DP ,Large,Programme
Cabinet Office,CABINET OFFICE,29/08/13,TELECOM RENTALS,INTELLIGENCE SECURITY AND RESILIENCE,BT GLOBAL SERVICES,3000039456,206460.64,National Resilience Extranet hosting and managed service costs,NW9 6LB,Large,Programme
Cabinet Office,CABINET OFFICE,30/08/13,CONSULTANTS VAT RECOVERABLE,SCHEME MANAGEMENT EXECUTIVE,AON HEWITT,3000039494,"26,646.00",Actuarial services ,KT18 5BS,Large,Admin
Cabinet Office,CABINET OFFICE,30/08/13,CONSULTANTS VAT RECOVERABLE,GOVERNMENT PROPERTY UNIT,INVESTMENT PROPERTY DATABANK LTD,3000039479,"27,777.78",Property benchmarking services.,EC1 4BL,Large,Admin
Cabinet Office,CABINET OFFICE,30/08/13,ADDITIONS - FH NON RES BLDGS,PRIME MINISTERS OFFICE,SECURITY SERVICES GROUP,3000039496,"40,500.00",Security hardware ,SN5 7XQ,Government Department,Admin
Cabinet Office,CABINET OFFICE,30/08/13,LEGAL ADVICE FROM TSOL,CENTRAL BUDGETS,TREASURY SOLICITOR TSOL,3000039499,182198.32,Legal costs,WC2B 4TS,Government Department,Admin
Cabinet Office,CABINET OFFICE,30/08/13,SOFTWARE LEASE/LICENSE,INDIVIDUAL ELECTORAL REGISTRATION,DEMOCRACY COUNTS,3000039492,201000,Design and development work required for the delivery of changes to local authority Electoral Management Systems required to interface with the new Individual Electoral Digital Service to handle additional data requirements,WA4 9GX,SME,Programme
Cabinet Office,CABINET OFFICE,30/08/13,NATIONAL CITIZEN SERVICE. CIVIL SOCIETY TRAINING & DEVELOP,OFFICE FOR CIVIL SOCIETY,THE CHALLENGE NETWORK,3000039493,1986553.41,National Citizen Service contract,SE1 7HS,SME,Programme
